{"text_format":"1","workbook":"xlsx","n_sheets":4,"sheets":["BHPs","Unload","Onept","Curve Data"],"not_rendered":{"charts":0,"images":0,"macros":1,"external_links":0,"defined_names":0,"comments":0,"pivot_tables":0},"unopened":[],"bounds":{"document_bytes":16777216,"sheet_cells":100000,"rows_first":2000,"rows_last":500,"rows_between":2000,"halvings":0,"cell_chars":16384,"cell_head_chars":4096},"cells_cut":0,"cells_raw":0,"read":"whole","date_system":"1900"}

{"sheet":"BHPs","index":0,"n_rows":73,"n_cols":39,"rows_kept":73,"cut":false,"hidden":false,"merged":[]}
[]
[]
[null,null,"Cullender and Smith -- Single-Phase Dry Gas",null,null,null,null,null,null,null,null,null,"Beggs and Brill -- Two-Phase Flow",null,null,null,null,null,null,null,null,null,null,null,"Hagedorn and Brown -- Vertical, Two-Phase Flow  -- No Mechanical Lift"]
[]
[null,null,null,null,null,null,null,null,null,null,null,null,null,null,null,null,null,null,null,null,null,null,null,null,null,null,null,null,null,null,null,null,null,null,null,"Depth","Wellbore","dP/dh","P"]
[null,null,"Static",null,null,null,"Flowing",null,null,null,null,null,"Flowing",null,"  ",null,null,null,"Last Increment Calculations",null,null,null,null,null,"Flowing -- Assumes Well is Unloaded",null,null,null,null,null,"Last Increment Calculations",null,null,null,null,"(ft)","Phase","(psi/ft)","(psia)"]
[null,null,"g",0.56999999999999995,null,null,"g ",0.82499999999999996,null,null,null,null,"gg",0.7,null,null,null,null,"q'L",0.48922281952957564,"ft3/sec",null,null," ","gg",0.67600000000000005,null,null,null,null,"q'L",6.4900000000000005E-6,"ft3/sec",null,null,435.6,"Two-Phase",3.7160930638445652E-3,36.618730138610694]
[null,null,"Ppc",673,"psia",null,"Ppc",684,"psia",null,null,null,"API",40,null,null,null,null,"q'g",8.5198243572400347,"ft3/sec",null,null,null,"API",35,null,null,null,null,"q'g",0.11461397333521664,"ft3/sec",null,null,871.2,"Two-Phase",3.7572183835464252E-3,38.255374466483516]
[null,null,"Tpc",378,"oR",null,"Tpc",342,"oR",null,null,null,"Ppc",670.1,"psia",null,null,null,"q't",9.0090471767696112,"ft3/sec",null,null,null,"Ppc",673,"psia",null,null,null,"q't",null,"ft3/sec",null,null,1306.8,"Two-Phase",3.7987601521644338E-3,39.910114388766345]
[null,null,"ST",80,"oF",null,"qg",3481,"mcfd",null,null,null,"Tpc",365.1,"oR",null,null,null,"wL",24.283262733061225,"lbm/sec",null,null,null,"Tpc",378,"oR",null,null,null,"wL",4.3335000000000004E-4,"lbm/sec",null,null,1742.4,"Two-Phase",3.8407266335383039E-3,41.58313491033563]
[null,null,"BHT",92,"oF",null,"ST",140,"oF",null,null,null,"qo",7140,"bopd",null,null,null,"wg",15.496519919999999,"lbm/sec",null,null,null,"qo",0,"bopd",null,null,null,"wg",2.7519960000000003E-2,"lbm/sec",null,null,2178,"Two-Phase",3.883128033570769E-3,43.27462548175906]
[null,null,"TVD",3226,"ft",null,"BHT",330,"oF",null,null,null,"qw",0,"bwpd",null,null,null,"wt",39.779782653061226,"lbm/sec",null,null,null,"qw",0.1,"bwpd",null,null,null,"wt",null,"lbm/sec",null,null,2613.6,"Two-Phase",3.9259679166050209E-3,44.984777106232208]
[null,null,null,null,null,null,"TVD",11350,"ft",null,null,null,"qg",25700,"mcfd",null,null,null,"VSL",0.62289836615163108,"ft/sec",null,null,null,"qg",46,"mcfd",null,null,null,"VSL",2.7850738855264741E-4,"ft/sec",null,null,3049.2,"Two-Phase",3.9692569935189242E-3,46.713785452609052]
[null,null," ",null,null,null,"MD",11350,"ft",null,null,null,"Pb",2659,"psia       (for oil viscosity)",null,null,null,"VSG",10.847786448569082,"ft/sec",null,null,null,"Pb",1,"psia    (for oil viscosity)      ",null,null,null,"VSG",4.9184650855522261,"ft/sec",null,null,3484.8,"Two-Phase",4.0129985174625115E-3,48.461847606815724]
[null,null,"Pts","Pws",null,null,"d",1.9950000000000001,"in",null,null,null,"Rsi ",96,"scf/stb    (for oil viscosity)",null,null,null,"Vm",11.470684814720713,"ft/sec",null,null,null,"Rsi ",1500,"scf / stb  ",null,null,null,"Vm",4.9187435929407783,"ft/sec",null,null,3920.4,"Two-Phase",4.0572051129128426E-3,50.229166154000559]
[null,null,"(psia)","(psia)",null,null,null,null,null,null,null,null,"Rs ",96,"scf/stb",null,null,null,"sL",40.845912680129274,"dynes/cm",null,null,null,"ST",80,"oF, surface temperature",null,null,null,"sL",69.598965196286116,"dynes/cm",null,null,4356,"Two-Phase",4.1018802833557239E-3,52.015945205430313]
[null,null,1355,{"$f":"BHSP($D$7,$D$8,$D$9,$D$10,$D$11,$D$12,C17)","v":1468.4480103969165},null,null,"Good only for GLRs > 10,000 scf / bbl ",null,null,null,null,null,"BHT",90,"oF, formation temperature",null,null,null,"rL",51.484548104956268,"lbm/ft3",null,null,null,"BHT",80,"oF, formation temperature",null,null,null,"lL-ns",5.662165211302175E-5,null,null,null,4791.6000000000004,"Two-Phase",4.1470321551742894E-3,53.822392412224232]
[null,null,null,null,null,null,"Calculation for gmixture",null,null,null,null,null,"Ttf",90,"oF, flowing temperature",null,null,null,"rg",1.8145618816264106,"lbm/ft3",null,null,null,null,null,null,null,null,null,"rL",66.771956856702616,"lbm/ft3",null,null,5227.2,"Two-Phase",4.1926685714973296E-3,55.648718841968467]
[null,null,null,null,null,null,"gg",0.59," ",null,null,null,null,null,null,null,null,null,"rm",13.979189230414015,"lbm/ft3",null,null,null,"Calc.  GLR",{"$f":"(Z13*1000)/(Z11+Z12)","v":460000}," scf  / bbl",null,null,null,"rg",0.24010999007521655,"lbm/ft3",null,null,5662.8,"Two-Phase",4.238797438347746E-3,57.495139006112744]
[null,null,"Given: gAPI",49.5,null,null,"gL",1.05,null,null,null,null,null,null,null,null,null,null,"NLV",1.2790957018922362,null,null,null,null,null,null,null,null,null,null,"rm-ns",0.24387713316293555,"lbm/ft3",null,null,6098.4,"Two-Phase",4.2854267795685748E-3,59.361870911292819]
[null,null,"Calc: go",{"$f":"141.5/(131.5+D20)","v":0.78176795580110492},null,null,"GLR",16557,"scf/stb",null," ",null,"Wellbore / Pipeline Detail",null,null,null,null,null,"NFR",4.0862301279088307,null,null,null,null,"Wellbore / Pipeline Detail",null,null,null,null,null,"NLV",5.3418086155738369E-4,null,null,null,6534,"Two-Phase",4.3325621538097339E-3,61.24913498549234]
[null,null,null," ",null,null,"gm",{"$f":"SGM(H19,H20,H21)","v":0.82517986425339362},"Input for g above",null,null,null,"Length",5280,"ft",null,null,null,"lL",5.4303502904398941E-2,null,null,null,null,"Length",8712,"ft",null,null,null,"NGV",9.4336812053499255,null,null,null,6969.6,"Two-Phase",4.3802139710181391E-3,63.157156191267845]
[null,null,"Given: go",0.85,null,null,null,null,null,null,null,null,"d",12,"in",null,null,null,"L1",131.10072453343167,null,null,null,null,"d",2.0670000000000002,"in",null,null,null,"Nd",20.392975597566071,null,null,null,7405.2,"Two-Phase",4.4283857249944993E-3,65.086161013075454]
[null,null,"Calc: gAPI",{"$f":"141.5/D23-131.5","v":34.970588235294116},null,null,"Ptf","Pwf",null,null,null,null,"q",86.74,"o inclination from vertical",null,null,null,"L2",1.2279666475590343,null,null,null,null,"e",5.9999999999999995E-4,"pipe roughness",null,null,null,"NL",2.1644481130701017E-3,null,null,null,7840.8,"Two-Phase",4.4770873007367908E-3,67.036380241276404]
[null,null,null,null,null,null,"(psia)","(psia)",null,null,null,null,"Increments",2,"# of length increments",null,null,null,"L3",6.8631564659920716,null,null,null,null,null,null,null,null,null,null,"CNL",1.9183847507493288E-3,null,null,null,8276.4,"Two-Phase",4.5263270710983652E-3,69.008048313446849]
[null,null,null,null,null,null,7500,{"$f":"BHFP($H$7,$H$8,$H$9,$H$10,$H$11,$H$12,$H$13,$H$14,$H$15,G26)","v":9300.9767614887951},null,null,null,null,null,null,null,null,null,null,"L4",167378620.41904485,null,null,null,null,null,null,null,null,null,null,"x-yL",1.616184864112434E-8,null,null,null,8712,"Two-Phase",4.5761126893159483E-3,71.001403000912873]
[null,null,null,null,null,null,null,null,null,null,null,null,null,null,null,null,null,null,"Flow","Transitional",null,null,null,null,"Results",null,null,null,null,null,"lL/y",6.2475686272557961E-3]
[null,null,null,null,null,null,null,null,null,null,null,null,"Results",null,null,null,null,null,"HL0",0.17349509619722378,null,null,null,null,null,null,null,null,null,null,"x-y",1.4448562502790041E-3]
[null,null,null,null,null,null,null,null,null,null,null,null,null,null,null,null,null,null,"C",0.21205786861442738,null,null,null,null,null,null,null,null,null,null,"y",0.99795008136679286]
[null,null,null,null,null,null,null,null,null,null,null,null,null,null,null,null,null,null,"Y",1.0216046937826555,null,null,null,null,null,null,null,null,null,null,"lL",6.2347616199145443E-3]
[null,null,"Tubing Dimensions ",null,null,null,null,null,null," ",null,null,null,null,null,null,null,null,"HLq",0.24490901394842571,null,null,null,null,null,null,null,null,null,null,"rm",0.65492019542129687,"lbm/ft3"]
[null,null,null,null,null,null,null," ",null,null,null,null,null,null,null,null,null,null,"NREns",1304.4108299635411,null,null,null,null,"Ptf   **","Avg","Pwf ",null,null,null,"rf",9.0814203769533253E-2,"lbm/ft3"]
[null,null,"OD (in)","(lb/ft)","ID (in)",null,null,null," "," ",null,null,"Ptf /","Avg","Pwf /",null,null,null,"fns",5.6476332945007944E-2,null,null,null,null,"Measured","dP/dL","Outlet",null,null,null,"mm",1.1170299682007882E-2,"cp"]
[null,null,1.05,1.2,0.82399999999999995,null,null,null,null,null,null,null,"Measured","dP/dL","Outlet",null,null,null,"y",0.90535375169351984,null,null,null,null,"(psia)","(psi/ft)","(psia)",null,null,null,"NREm",73916.24627853703]
[null,null,null,1.5,0.74199999999999999,null,null,null,null,null,null,null,"(psia)","(psi/ft)","(psi)",null,null,null,"S",0.26352303052691373,null,null,null,null,35,{"$f":"AA35/Z22","v":8.1498396465694307E-3},71.001403000912873,null,null,null,"fm",2.03970677428305E-2]
[null,null,1.3149999999999999,1.8,1.0489999999999999,null,null,null,null,null,null,null,425,{"$f":"O36/N22","v":9.7395833333333334E-2},{"$f":"T43","v":514.25},null,null,null,"fm",7.3504357854091026E-2,null,null,null,null,null,null,null,null,null,null,"dP/dh",4.5761126893159483E-3," psi /ft"]
[null,null,null,2.25,0.95699999999999996,null,null,null,null,null,null,null,null,null,null,null,null,null,"DP/DL",-0.22918695435483213,"psi/ft",null,null,null," **  P is in psia, so enter 14.7 for Ptf = 0 psi",null,null,null,null,null,"inc count",2]
[null,null,1.66,2.1,1.41,null,null,null,null,null,null,null,null,null,null,null,null,null," i",2,null,null,null,null,null,null,null,null,null,null,null," "]
[null,null,null,2.4,1.38,null,null,null,null,null,null,null,null,null,null,null,null,null," iCount",1]
[null,null,null,3.02,1.278,null,null,null,null,null,null,null,null,null,null,null,null,null,"dP(i)",46.75,"psi"]
[null,null,1.9,2.4,1.65,null,null,null,null,null,null,null,null,null," ",null,null,null,"dL(i)",-203.98194186751419,"ft"]
[null,null,null,2.9,1.61,null,null,null,null,null,null,null,null,null,null,null,null,null,"T",90,"oF"]
[null,null,null,3.64,1.5,null,null,null,null,null,null,null,null,null,null,null,null,null,"SumP(i)",514.25,"psi"]
[null,null,2,3.4,1.67,null,null,null,null,null,null,null,null,null,null,null,null,null,"Sumlength",-389.73448670867373,"ft"]
[null,null,2.0630000000000002,3.25,1.7509999999999999,null,null,null,null,null,null,null,null,null,null,null,null,null,"Error",0]
[null,null,2.375,4,2.0409999999999999,null,null,null,null,null,null,null,null,null,null,null,null,null,"Pinc avg",490.875,"psi"]
[null,null,null,4.7,1.9950000000000001,null,null,null,null,null,null,null,null,null,null,null,null,null,"Z",0.9296045602413302]
[null,null,null,5.3,1.9390000000000001]
[null,null,null,5.95,1.867]
[null,null,null,6.2,1.853]
[null,null,null,7.7,1.7030000000000001]
[null,null,2.875,6.5,2.4409999999999998]
[null,null,null,7.9,2.323]
[null,null,null,8.6999999999999993,2.2589999999999999]
[null,null,null,9.5,2.1949999999999998]
[null,null,null,10.7,2.0910000000000002]
[null,null,null,11,2.0649999999999999]
[null,null,null,11.65,1.9950000000000001]
[null,null,3.5,7.7,3.0680000000000001]
[null,null,null,9.3000000000000007,2.992]
[null,null,null,10.3,2.9220000000000002]
[null,null,null,12.8,2.7639999999999998]
[null,null,null,12.95,2.75]
[null,null,null,15.8,2.548]
[null,null,null,16.7,2.48]
[null,null,4,9.5,3.548]
[null,null,null,11,3.476]
[null,null,null,11.6,3.4279999999999999]
[null,null,null,13.4,3.34]
[null,null,4.5,12.75,3.9580000000000002]
[null,null,null,13.5,3.92]
[null,null,null,15.5,3.8260000000000001]
[null,null,null,19.2,3.64]

{"sheet":"Unload","index":1,"n_rows":59,"n_cols":4,"rows_kept":59,"cut":false,"hidden":false,"merged":[]}
[]
[]
[null,"Inputs (Turner method)"]
[null,"Tbg.  ID",1.9950000000000001,"in."]
[null,"pf",1200,"psia"]
[null,"Tf",160,"oF"]
[null," gh ",0.58499999999999996," "]
[null,"T''pc",342," oR"]
[null,"P''pc",684," psia"]
[null,"Liquid Switch",1,"Use 1 for Water,   "]
[null,null," "," 2 for Condensate"]
[null,"qmin",{"$f":"QminTurner($C$4,$C$5,$C$6,$C$7,$C$8,$C$9,$C$10)","v":1227.0534953834385},"mcfd "]
[null,"qmin",{"$f":"C12*1000*0.02831685","v":34746.289770748517},"m3/d"]
[]
[]
[null,null," "]
[null,"Tubing Dimensions "]
[]
[null,"OD (in)","(lb/ft)","ID (in)"]
[null,1.05,1.2,0.82399999999999995]
[null,null,1.5,0.74199999999999999]
[null,1.3149999999999999,1.8,1.0489999999999999]
[null,null,2.25,0.95699999999999996]
[null,1.66,2.1,1.41]
[null,null,2.4,1.38]
[null,null,3.02,1.278]
[null,1.9,2.4,1.65]
[null,null,2.9,1.61]
[null,null,3.64,1.5]
[null,2,3.4,1.67]
[null,2.0630000000000002,3.25,1.7509999999999999]
[null,2.375,4,2.0409999999999999]
[null,null,4.7,1.9950000000000001]
[null,null,5.3,1.9390000000000001]
[null,null,5.95,1.867]
[null,null,6.2,1.853]
[null,null,7.7,1.7030000000000001]
[null,2.875,6.5,2.4409999999999998]
[null,null,7.9,2.323]
[null,null,8.6999999999999993,2.2589999999999999]
[null,null,9.5,2.1949999999999998]
[null,null,10.7,2.0910000000000002]
[null,null,11,2.0649999999999999]
[null,null,11.65,1.9950000000000001]
[null,3.5,7.7,3.0680000000000001]
[null,null,9.3000000000000007,2.992]
[null,null,10.3,2.9220000000000002]
[null,null,12.8,2.7639999999999998]
[null,null,12.95,2.75]
[null,null,15.8,2.548]
[null,null,16.7,2.48]
[null,4,9.5,3.548]
[null,null,11,3.476]
[null,null,11.6,3.4279999999999999]
[null,null,13.4,3.34]
[null,4.5,12.75,3.9580000000000002]
[null,null,13.5,3.92]
[null,null,15.5,3.8260000000000001]
[null,null,19.2,3.64]

{"sheet":"Onept","index":2,"n_rows":29,"n_cols":14,"rows_kept":29,"cut":false,"hidden":false,"merged":[]}
[null,"Permeability Estimate from One Point Flow Data -- SPE 12847"]
[]
[null,"Warning !   Does not apply to linear flow, which will give a negative perm.   Must be in pseudo-radial flow."]
[]
[]
[null,"WELL DATA",null,null,null,null,"PVT   DATA"]
[null,"Pwf",707,"  bottom-hole,  psia",null,null," gg ",0.65,null,null,null,"Pseudo-producing time  =  cum prod  /  final prod rate"]
[null,"qg",169,"  mcfd",null,null,"T''pc",357.4,"    oR"]
[null,"tp",1200," pseudo-prod time, hrs",null,null,"p''pc",674.2,"   psia"]
[null,"s'",5,"  Assumed apparent skin"]
[null,null,null,null,null,null,"Pi",6500,"  psia"]
[null,"f",7.4999999999999997E-2,"  fraction",null,null,"Tres",202," oF"]
[null,"Rock ",1,"1 for SS, 2 for LMS"]
[null,"Sw",0.31,"  fraction",null,null,"zi",{"$f":"VINTERPOLATE(H11,#REF!,2)","v":{"$error":"#VALUE!"}}]
[null,"h",25,"  ft",null,null,"mgi",{"$f":"VINTERPOLATE(H11,#REF!,7)","v":{"$error":"#VALUE!"}},"   cp"]
[null,"rw",0.25,"  ft",null,null,"cgi",{"$f":"VINTERPOLATE(H11,#REF!,5)","v":{"$error":"#VALUE!"}},"   psi-1"]
[null,null,null,null,null,null,"cw",{"$f":"Cw(H12,H11)","v":2.8537127880000001E-6},"   psi-0"]
[null,"k1",0.1,"  md, initial guess",null,null,"cf",{"$f":"cf(C13,C12)","v":9.2571098339436449E-6},"   psi-1"]
[null,null,null,null,null,null,"ct",{"$f":"C14*H17+(1-C14)*H16+H18","v":{"$error":"#VALUE!"}},"   psi-1"]
[]
[null,"Run Gas Prop prior to Calculation",null,null,null,null,"yi",{"$f":"VINTERPOLATE(H11,#REF!,8)","v":{"$error":"#VALUE!"}},"  psia2/cp"]
[null,null,null,null,null,null,"ywf",{"$f":"VINTERPOLATE(C7,#REF!,8)","v":{"$error":"#VALUE!"}},"  psia2/cp"]
[]
[]
[null,"ONE  POINT"]
[null,"k",4.3067514358731906E-2,"     md",null,null,null,null,null,null,null,null,null," "]
[null,null," "," "]
[null,null,5,"   Iterations Req'd"]
[null,null," "]

{"sheet":"Curve Data","index":3,"n_rows":39,"n_cols":39,"rows_kept":39,"cut":false,"hidden":true,"merged":[]}
["From Beggs, Gas Production Operations, p. 259, Subroutine HAGBR array data for Hagedorn and Brown Method for 2-phase flow"]
[]
[]
[]
["Fig. 4-7","Fig. 4-7",null,"Fig. 4-8","Fig.4-8",null,"Fig. 4-9","Fig. 4-9"]
["NL","CNL",null,"NLV...","HL/y",null,"NGV...","y",null,null,null,null,null,null,null,null,null,null,null,null,null,null,null,null,null,null,null,null,null,null,null,null,null,null,null,"(ft)","Phase","(psi/ft)","(psia)"]
["XCNL","YCNL",null,"XHL","YHL",null,"XPHI","YPHI",null,null,null,null,null,null,null,null,null,null,null,null,null,null,null,null,null,null,null,null,null,null,null,0.17541442263780921,null,null,null,400,"Two-Phase",0.12951255448069088,251.80502179227636]
[2E-3,1.9E-3,null,1.9999999999999999E-6,0.04,null,0,1,null,null,null,null,null,null,null,null,null,null,null,null,null,null,null,null,null,null,null,null,null,null,null,0,null,null,null,800,"Two-Phase",0.14103490742264926,308.21898476133606]
[5.0000000000000001E-3,2.2000000000000001E-3,null,5.0000000000000004E-6,0.09,null,0.01,1,null,null,null,null,null,null,null,null,null,null,null,null,null,null,null,null,null,null,null,null,null,null,null,null,null,null,null,1200,"Two-Phase",0.1536939106145303,369.69654900714818]
[0.01,2.3999999999999998E-3,null,1.0000000000000001E-5,0.15,null,0.02,1.1000000000000001,null,null,null,null,null,null,null,null,null,null,null,null,null,null,null,null,null,null,null,null,null,null,null,8.8341708715596319,null,null,null,1600,"Two-Phase",0.16995520077257201,437.67862931617697]
[0.02,2.8E-3,null,2.0000000000000002E-5,0.18,null,2.5000000000000001E-2,1.23,null,null,null,null,null,null,null,null,null,null,null,null,null,null,null,null,null,null,null,null,null,null,null,0,null,null,null,2000,"Two-Phase",0.19660512373300859,516.32067880938041]
[0.03,3.3E-3,null,5.0000000000000002E-5,0.25,null,0.03,1.4,null,null,null,null,null,null,null,null,null,null,null,null,null,null,null,null,null,null,null,null,null,null,null,null,null,null,null,2400,"Liquid",0.3911582438646633,672.78397635524573]
[0.06,4.7000000000000002E-3,null,1E-4,0.34,null,3.5000000000000003E-2,1.53,null,null,null,null,null,null,null,null,null,null,null,null,null,null,null,null,null,null,null,null,null,null,null,2.0529893486820376,null,null,null,2800,"Liquid",0.38650780806766799,827.38709958231289]
[0.1,6.4000000000000003E-3,null,2.0000000000000001E-4,0.44,null,0.04,1.6,null,null,null,null,null,null,null,null,null,null,null,null,null,null,null,null,null,null,null,null,null,null,null,0,null,null,null,3200,"Liquid",0.38210699016385219,980.22989564785371]
[0.15,8.0000000000000002E-3,null,5.0000000000000001E-4,0.65,null,4.4999999999999998E-2,1.65,null,null,null,null,null,null,null,null,null,null,null,null,null,null,null,null,null,null,null,null,null,null,null,2.0529893486820376,null,null,null,3600,"Liquid",0.37792635898640525,1131.4004392424158]
[0.2,8.9999999999999993E-3,null,1E-3,0.82,null,0.05,1.68,null,null,null,null,null,null,null,null,null,null,null,null,null,null,null,null,null,null,null,null,null,null,null,21.901150249111893,null,null,null,4000,"Liquid",0.37394793903099199,1280.9796148548126]
[0.4,1.15E-2,null,2E-3,0.92,null,0.06,1.74,null,null,null,null,null,null,null,null,null,null,null,null,null,null,null,null,null,null,null,null,null,null,null,1,null,null,null,4400,"Liquid",0.37015590704551948,1429.0419776730203]
[null,null,null,3.0000000000000001E-3,0.96,null,7.0000000000000007E-2,1.78,null,null,null,null,null,null,null,null,null,null,null,null,null,null,null,null,null,null,null,null,null,null,null,50.361713356946602,null,null,null,4800,"Liquid",0.36653620631216011,1575.6564601978844]
[null,null,null,0.01,1,null,0.08,1.8,null,null,null,null,null,null,null,null,null,null,null,null,null,null,null,null,null,null,null,null,null,null,null,0,null,null,null,5200,"Liquid",0.36307626860976272,1720.8869676417894]
[null,null,null,null,null,null,0.09,1.83,null,null,null,null,null,null,null,null,null,null,null,null,null,null,null,null,null,null,null,null,null,null,null,50.361713356946602,null,null,null,5600,"Liquid",0.35976480044956638,1864.792887821616]
[null,null,null,null,null,null,null,null,null,null,null,null,null,null,null,null,null,null,null,null,null,null,null,null,null,null,null,null,null,null,null,3.6519911598023542,null,null,null,6000,"Liquid",0.35659161202008061,2007.4295326296483]
[null,null,null,null,null,null,null,null,null,null,null,null,null,null,null,null,null,null,null,null,null,null,null,null,null,null,null,null,null,null,null,2.4047078505619841E-2,null,null,null,6400,"Liquid",0.35354747674133924,2148.848523326184]
["Figure 4.7, 4.8, 4.9 (Beggs) Linear Interpolations ",null,null,null,null,null,null,null,null,null,null,null,null,null,null,null,null,null,null,null,null,null,null,null,null,null,null,null,null,null,null,49.772010706977554,null,null,null,6800,"Liquid",0.35100968367434898,2289.2523967959237]
["NL","CNL",null,"NLV...","HL/y",null,"NGV...","y",null," ",null,null,null,null,null,null,null,null,null,null,null,null,null,null,null,null,null,null,null,null,null,3.1469442463570294E-3,null,null,null,7200,"Liquid",0.35101146496779234,2429.6569827830408]
[2.1644481130701017E-3,{"$f":"IF(A25<0.002,0.0019,VINTERPOLATE(A25,A8:B17,2))","v":1.9164448113070101E-3},null,1.616184864112434E-8,{"$f":"IF(D25<0.000002,0.04,VINTERPOLATE(D25,D8:E19,2))","v":0.04},null,1.4448562502790041E-3,{"$f":"IF(G25>0.09,1.83,VINTERPOLATE(G25,G8:H20,2))","v":1},"linear",null,null,null,null,null,null,null,null,null,null,null,null,null,null,null,null,null,null,null,null,null,null,2.0262821366056798E-3,null,null,null,7600,"Liquid",0.35101335792224969,2570.0623259519407]
[null,null,null,null,null,null,null," ",null,null,null,null,null,null,null,null,null,null,null,null,null,null,null,null,null,null,null,null,null,null,null,1.8319802398215916E-3,null,null,null,8000,"Liquid",0.35101535542748485,2710.4684681229346]
[null,null,null," ",null,null,null,null,null,null,null,null,null,null,null,null,null,null,null,null,null,null,null,null,null,null,null,null,null,null,null,0.91179661721010852]
[null,{"$f":"cubic_spline(A8:A17,B8:B17,A25)","v":1.9183847507493288E-3},null,null,{"$f":"cubic_spline(D8:D17,E8:E17,D25)","v":6.2475686272557961E-3},null,null,{"$f":"cubic_spline(G8:G17,H8:H17,G25)","v":0.99795006582450818},"cubic spline",null,"Function cubic_spline(input_column As Range, _",null,null,null,null,null,null,null,null,null,null,null,null,null,null,null,null,null,null,null,null,6.2908866768431518E-7]
[null,null,null,null,null,null,null,null,null,null,"                      output_column As Range, _",null,null,null,null,null,null,null,null,null,null,null,null,null,null,null,null,null,null,null,null,0.99999911441698353]
[null,null,null,null,null,null,null,null,null,null,"                      x As Range)",null,null,null,null,null,null,null,null,null,null,null,null,null,null,null,null,null,null,null,null,1]
[null,null,null,null,null,null,null,null,null,null,null,null,null,null,null,null,null,null,null,null,null,null,null,null,null,null,null,null,null,null,null,50.361713356946602]
[null,null,null,null,null,null,null,null,null,null,null,null,null,null,null,null,null,null,null,null,null,null,null,null,null,null,null,null,null,null,null,50.361713356946595]
[null,null,null,null,null,null,null,null,null,null,null,null,null,null,null,null,null,null,null,null,null,null,null,null,null,null,null,null,null,null,null,0.46822470455627535]
[null,null,null,null,null,null,null,null,null,null,null,null,null,null,null,null,null,null,null,null,null,null,null,null,null,null,null,null,null,null,null,108375.30775110483]
[null,null,null,null,null,null,null,null,null,null,null,null,null,null,null,null,null,null,null,null,null,null,null,null,null,null,2710.4684681229346,null,null,null,null,1.8462808785174017E-2]
[null,null,null,null,null,null,null,null,null,null,null,null,null,null,null,null,null,null,null,null,null,null,null,null,null,null,null,null,null,null,null,0.35101535542748485]
[null,null,null,null,null,null,null,null,null,null,null,null,null,null,null,null,null,null,null,null,null,null,null,null,null,null,null,null,null,null,null,2]
[]
[null,null,null,null,null,null,null,null,null,null,null,null,null,null,null,null,null,null,null,null,null,null,null,null,null,null,109.12587906803748]